[Event "Open NK Rapid 2025 bord 26-50"]
[Site "Helmond, Netherlands"]
[Date "2025.05.03"]
[Round "6.22"]
[White "Pieper, Roy"]
[Black "Winter, Sven"]
[Result "0-1"]
[TimeControl "15 min +5 sec increment"]
[WhiteFideId "40101215"]
[BlackFideId "1092375"]
[WhiteElo "1758"]
[BlackElo "1869"]

1. d4 {[%clk 00:15:09]} {[%emt 00:00:01]} Nf6 {[%clk 00:15:09]} {[%emt
00:00:02]} 2. Bf4 {[%clk 00:15:12]} {[%emt 00:00:01]} c5 {[%clk 00:15:13]}
{[%emt 00:00:01]} 3. d5 {[%clk 00:15:15]} {[%emt 00:00:02]} b5 {[%clk
00:15:16]} {[%emt 00:00:02]} 4. f3 {[%clk 00:15:11]} {[%emt 00:00:09]} d6
{[%clk 00:15:14]} {[%emt 00:00:07]} 5. e4 {[%clk 00:15:05]} {[%emt 00:00:11]}
a6 {[%clk 00:14:59]} {[%emt 00:00:19]} 6. a3 {[%clk 00:13:49]} {[%emt
00:01:22]} g6 {[%clk 00:15:00]} {[%emt 00:00:04]} 7. Qd2 {[%clk 00:13:18]}
{[%emt 00:00:36]} h5 {[%clk 00:14:30]} {[%emt 00:00:35]} 8. h4 {[%clk
00:13:00]} {[%emt 00:00:23]} Bg7 {[%clk 00:14:32]} {[%emt 00:00:03]} 9. c4
{[%clk 00:12:21]} {[%emt 00:00:44]} Qb6 {[%clk 00:13:54]} {[%emt 00:00:43]} 10.
Nc3 {[%clk 00:11:17]} {[%emt 00:01:09]} b4 {[%clk 00:13:14]} {[%emt 00:00:44]}
11. Na4 {[%clk 00:11:06]} {[%emt 00:00:16]} Qa5 {[%clk 00:12:47]} {[%emt
00:00:32]} 12. axb4 {[%clk 00:11:00]} {[%emt 00:00:12]} cxb4 {[%clk 00:12:49]}
{[%emt 00:00:03]} 13. Ra2 {[%clk 00:07:32]} {[%emt 00:03:33]} Bd7 {[%clk
00:11:19]} {[%emt 00:01:35]} 14. b3 {[%clk 00:07:36]} Nxe4 {[%clk 00:06:40]}
{[%emt 00:04:44]} 15. fxe4 {[%clk 00:07:19]} {[%emt 00:00:22]} Bxa4 {[%clk
00:06:43]} {[%emt 00:00:03]} 16. Rxa4 {[%clk 00:06:47]} {[%emt 00:00:36]} Qxa4
{[%clk 00:06:46]} {[%emt 00:00:02]} 17. bxa4 {[%clk 00:06:34]} {[%emt
00:00:18]} Bc3 {[%clk 00:06:49]} {[%emt 00:00:02]} 18. Qxc3 {[%clk 00:05:27]}
{[%emt 00:01:12]} bxc3 {[%clk 00:06:52]} {[%emt 00:00:02]} 19. Rh3 {[%clk
00:04:44]} {[%emt 00:00:47]} Nd7 {[%clk 00:06:41]} {[%emt 00:00:16]} 20. Ne2
{[%clk 00:04:09]} {[%emt 00:00:41]} Rc8 {[%clk 00:06:13]} {[%emt 00:00:33]} 21.
Nxc3 {[%clk 00:03:50]} {[%emt 00:00:24]} Nb6 {[%clk 00:06:13]} {[%emt
00:00:04]} 22. e5 {[%clk 00:03:18]} {[%emt 00:00:37]} dxe5 {[%clk 00:05:13]}
{[%emt 00:01:06]} 23. Bxe5 {[%clk 00:03:11]} {[%emt 00:00:12]} O-O {[%clk
00:05:16]} {[%emt 00:00:02]} 24. a5 {[%clk 00:02:28]} {[%emt 00:00:48]} Nxc4
{[%clk 00:05:18]} {[%emt 00:00:02]} 25. Bxc4 {[%clk 00:02:32]} {[%emt
00:00:02]} Rxc4 {[%clk 00:05:21]} {[%emt 00:00:02]} 26. Kf2 {[%clk 00:02:14]}
{[%emt 00:00:23]} Rfc8 {[%clk 00:04:58]} {[%emt 00:00:28]} 27. Ne2 {[%clk
00:01:36]} {[%emt 00:00:43]} R8c5 {[%clk 00:04:05]} {[%emt 00:00:58]} 28. Rc3
{[%clk 00:01:20]} {[%emt 00:00:21]} Rxc3 {[%clk 00:04:03]} {[%emt 00:00:07]} 29.
Bxc3 {[%clk 00:01:17]} {[%emt 00:00:09]} Rxd5 {[%clk 00:04:03]} {[%emt
00:00:05]} 30. Nf4 {[%clk 00:01:18]} {[%emt 00:00:04]} Rc5 {[%clk 00:04:00]}
{[%emt 00:00:07]} 31. Bb4 {[%clk 00:01:10]} {[%emt 00:00:13]} Rc4 {[%clk
00:03:45]} {[%emt 00:00:20]} 32. Nd3 {[%clk 00:01:14]} {[%emt 00:00:01]} e5
{[%clk 00:03:34]} {[%emt 00:00:16]} 33. Be7 {[%clk 00:00:38]} {[%emt 00:00:41]}
Ra4 {[%clk 00:02:14]} {[%emt 00:01:26]} 34. Bd8 {[%clk 00:00:34]} {[%emt
00:00:08]} Rd4 {[%clk 00:02:16]} {[%emt 00:00:02]} 35. Nc5 {[%clk 00:00:32]}
{[%emt 00:00:08]} Rxd8 {[%clk 00:02:17]} {[%emt 00:00:04]} 36. Nxa6 {[%clk
00:00:30]} {[%emt 00:00:06]} Ra8 {[%clk 00:02:21]} {[%emt 00:00:02]} 37. Nb4
{[%clk 00:00:26]} {[%emt 00:00:09]} Rxa5 {[%clk 00:02:24]} {[%emt 00:00:02]} 38.
Nc6 {[%clk 00:00:25]} {[%emt 00:00:06]} Rc5 {[%clk 00:02:26]} {[%emt 00:00:02]}
39. Nd8 {[%clk 00:00:20]} {[%emt 00:00:10]} Rc7 {[%clk 00:02:24]} {[%emt
00:00:08]} 40. Ke3 {[%clk 00:00:18]} {[%emt 00:00:08]} Kf8 {[%clk 00:02:25]}
{[%emt 00:00:03]} 41. Ke4 {[%clk 00:00:17]} {[%emt 00:00:06]} Ke7 {[%clk
00:02:28]} {[%emt 00:00:02]} 42. Nxf7 {[%clk 00:00:16]} {[%emt 00:00:06]} Kxf7
{[%clk 00:02:31]} {[%emt 00:00:02]} 43. Kxe5 {[%clk 00:00:20]} {[%emt
00:00:01]} Rc4 {[%clk 00:02:32]} {[%emt 00:00:04]} 44. g3 {[%clk 00:00:22]}
{[%emt 00:00:03]} Rg4 {[%clk 00:02:35]} {[%emt 00:00:02]} 0-1

[Event "Open NK Rapid 2025 bord 26-50"]
[Site "Helmond, Netherlands"]
[Date "2025.05.03"]
[Round "6.23"]
[White "Bach Pareja, Raimon"]
[Black "Gergin, Isafara"]
[Result "1/2-1/2"]
[TimeControl "15 min +5 sec increment"]
[WhiteFideId "54728380"]
[BlackFideId "1082167"]
[WhiteElo "1868"]
[BlackElo "1779"]

1. e4 {[%clk 00:15:08]} {[%emt 00:00:01]} c6 {[%clk 00:15:09]} {[%emt
00:00:02]} 2. Nf3 {[%clk 00:15:04]} {[%emt 00:00:08]} d5 {[%clk 00:15:13]}
{[%emt 00:00:03]} 3. Nc3 {[%clk 00:15:07]} {[%emt 00:00:01]} dxe4 {[%clk
00:15:12]} {[%emt 00:00:05]} 4. Nxe4 {[%clk 00:15:11]} {[%emt 00:00:02]} Nf6
{[%clk 00:15:16]} {[%emt 00:00:01]} 5. Qe2 {[%clk 00:15:02]} {[%emt 00:00:13]}
Na6 {[%clk 00:15:12]} {[%emt 00:00:10]} 6. Nxf6+ {[%clk 00:14:47]} {[%emt
00:00:20]} gxf6 {[%clk 00:15:15]} {[%emt 00:00:02]} 7. d4 {[%clk 00:13:55]}
{[%emt 00:00:57]} Qd5 {[%clk 00:15:03]} {[%emt 00:00:17]} 8. g3 {[%clk
00:12:27]} {[%emt 00:01:32]} Bg4 {[%clk 00:14:40]} {[%emt 00:00:29]} 9. Bg2
{[%clk 00:12:14]} {[%emt 00:00:17]} Bxf3 {[%clk 00:14:25]} {[%emt 00:00:21]} 10.
Bxf3 {[%clk 00:12:15]} {[%emt 00:00:04]} Qxd4 {[%clk 00:14:26]} {[%emt
00:00:04]} 11. O-O {[%clk 00:11:53]} {[%emt 00:00:27]} Nc7 {[%clk 00:13:04]}
{[%emt 00:01:27]} 12. Rd1 {[%clk 00:10:59]} {[%emt 00:00:58]} Qe5 {[%clk
00:12:28]} {[%emt 00:00:42]} 13. Qd3 {[%clk 00:10:41]} {[%emt 00:00:22]} Nd5
{[%clk 00:11:10]} {[%emt 00:01:24]} 14. c4 {[%clk 00:10:33]} {[%emt 00:00:12]}
Nb6 {[%clk 00:11:10]} {[%emt 00:00:06]} 15. Bf4 {[%clk 00:08:47]} {[%emt
00:01:51]} Qe6 {[%clk 00:11:04]} {[%emt 00:00:11]} 16. Bc7 {[%clk 00:07:55]}
{[%emt 00:00:56]} Qd7 {[%clk 00:09:06]} {[%emt 00:02:03]} 17. Bxb6 {[%clk
00:04:39]} {[%emt 00:03:21]} Qxd3 {[%clk 00:09:08]} {[%emt 00:00:03]} 18. Rxd3
{[%clk 00:04:43]} {[%emt 00:00:02]} axb6 {[%emt 00:00:04]} 19. Rad1 {[%clk
00:04:46]} e5 {[%clk 00:06:56]} {[%emt 00:02:20]} 20. Rd7 {[%clk 00:04:25]}
{[%emt 00:00:27]} Rb8 {[%clk 00:06:30]} {[%emt 00:00:31]} 21. Bh5 {[%clk
00:00:59]} {[%emt 00:03:30]} Be7 {[%clk 00:05:53]} {[%emt 00:00:42]} 22. Rc7
{[%clk 00:01:01]} {[%emt 00:00:01]} Rf8 {[%clk 00:04:07]} {[%emt 00:01:53]} 23.
Rdd7 {[%clk 00:01:01]} {[%emt 00:00:05]} Bd8 {[%clk 00:04:01]} {[%emt
00:00:11]} 24. Rxb7 {[%clk 00:00:27]} {[%emt 00:00:39]} Rxb7 {[%clk 00:03:51]}
{[%emt 00:00:16]} 25. Rxb7 {[%clk 00:00:31]} c5 {[%clk 00:03:31]} {[%emt
00:00:25]} 26. Bf3 {[%clk 00:00:19]} {[%emt 00:00:16]} Rg8 {[%clk 00:03:22]}
{[%emt 00:00:14]} 27. Bd5 {[%clk 00:00:07]} {[%emt 00:00:17]} Rg7 {[%clk
00:03:17]} {[%emt 00:00:10]} 28. Bc6+ {[%clk 00:00:08]} {[%emt 00:00:04]} Kf8
{[%clk 00:03:08]} {[%emt 00:00:14]} 29. Rb8 {[%clk 00:00:12]} {[%emt 00:00:02]}
Ke7 {[%clk 00:03:07]} {[%emt 00:00:05]} 30. Rb7+ {[%clk 00:00:10]} {[%emt
00:00:07]} Kd6 {[%clk 00:02:28]} {[%emt 00:00:44]} 31. Bb5 {[%clk 00:00:07]}
{[%emt 00:00:08]} Bc7 {[%clk 00:02:24]} {[%emt 00:00:09]} 32. Ra7 {[%clk
00:00:08]} {[%emt 00:00:04]} Rg8 {[%clk 00:02:12]} {[%emt 00:00:17]} 33. Ra3
{[%emt 00:00:05]} Rd8 {[%clk 00:01:32]} {[%emt 00:00:44]} 34. Rd3+ {[%clk
00:00:11]} {[%emt 00:00:03]} Ke6 {[%clk 00:01:35]} {[%emt 00:00:02]} 35. Ra3
{[%clk 00:00:11]} {[%emt 00:00:05]} f5 {[%clk 00:01:21]} {[%emt 00:00:19]} 36.
Bc6 {[%clk 00:00:14]} {[%emt 00:00:02]} Rd2 {[%clk 00:00:57]} {[%emt 00:00:29]}
37. Bd5+ {[%clk 00:00:15]} {[%emt 00:00:04]} Kd6 {[%clk 00:00:55]} {[%emt
00:00:08]} 38. b3 {[%clk 00:00:14]} {[%emt 00:00:05]} f6 {[%clk 00:00:52]}
{[%emt 00:00:07]} 39. Ra8 {[%clk 00:00:17]} {[%emt 00:00:03]} e4 {[%clk
00:00:45]} {[%emt 00:00:12]} 40. Kf1 {[%clk 00:00:18]} {[%emt 00:00:04]} Ke5
{[%clk 00:00:34]} {[%emt 00:00:17]} 41. Rc8 {[%clk 00:00:10]} {[%emt 00:00:12]}
Bd6 {[%clk 00:00:22]} {[%emt 00:00:17]} 42. Re8+ {[%clk 00:00:08]} {[%emt
00:00:07]} Kd4 {[%clk 00:00:25]} {[%emt 00:00:02]} 43. Rd8 {[%clk 00:00:10]}
{[%emt 00:00:02]} Ke5 {[%clk 00:00:20]} {[%emt 00:00:11]} 44. Re8+ {[%clk
00:00:10]} {[%emt 00:00:05]} Kd4 {[%clk 00:00:23]} {[%emt 00:00:02]} 45. Rd8
{[%clk 00:00:12]} {[%emt 00:00:04]} Ke5 {[%clk 00:00:26]} 46. Re8+ {[%clk
00:00:15]} {[%emt 00:00:02]} 1/2-1/2

[Event "Open NK Rapid 2025 bord 26-50"]
[Site "Helmond, Netherlands"]
[Date "2025.05.03"]
[Round "6.24"]
[White "Van Esch, Rob"]
[Black "Hylarides, Charlie Ronald"]
[Result "1-0"]
[TimeControl "15 min +5 sec increment"]
[WhiteFideId "40119289"]
[BlackFideId "40105822"]
[WhiteElo "1860"]
[BlackElo "1774"]

1. e4 {[%clk 00:15:07]} {[%emt 00:00:02]} c6 {[%clk 00:15:08]} {[%emt
00:00:03]} 2. Nc3 {[%clk 00:15:09]} {[%emt 00:00:03]} d5 {[%clk 00:15:02]}
{[%emt 00:00:11]} 3. Nf3 {[%clk 00:14:58]} {[%emt 00:00:16]} Bg4 {[%clk
00:15:00]} {[%emt 00:00:07]} 4. Be2 {[%clk 00:14:59]} {[%emt 00:00:04]} e6
{[%clk 00:15:01]} {[%emt 00:00:04]} 5. d4 {[%clk 00:14:37]} {[%emt 00:00:26]}
Nf6 {[%clk 00:14:50]} {[%emt 00:00:16]} 6. e5 {[%clk 00:13:03]} {[%emt
00:01:38]} Nfd7 {[%clk 00:14:52]} {[%emt 00:00:04]} 7. O-O {[%clk 00:12:18]}
{[%emt 00:00:50]} c5 {[%clk 00:14:52]} {[%emt 00:00:06]} 8. Re1 {[%clk
00:10:56]} {[%emt 00:01:27]} Be7 {[%clk 00:14:43]} {[%emt 00:00:14]} 9. h3
{[%clk 00:09:14]} {[%emt 00:01:46]} Bxf3 {[%clk 00:14:41]} {[%emt 00:00:06]} 10.
Bxf3 {[%clk 00:09:16]} {[%emt 00:00:04]} cxd4 {[%clk 00:14:05]} {[%emt
00:00:41]} 11. Qxd4 {[%clk 00:09:13]} {[%emt 00:00:08]} O-O {[%clk 00:11:26]}
{[%emt 00:02:44]} 12. Qg4 {[%clk 00:08:38]} {[%emt 00:00:40]} Kh8 {[%clk
00:10:45]} {[%emt 00:00:47]} 13. Bf4 {[%clk 00:07:24]} {[%emt 00:01:18]} Nc6
{[%clk 00:10:30]} {[%emt 00:00:20]} 14. a3 {[%clk 00:07:18]} {[%emt 00:00:12]}
a6 {[%clk 00:09:22]} {[%emt 00:01:13]} 15. Rad1 {[%clk 00:07:20]} {[%emt
00:00:02]} Rc8 {[%clk 00:09:01]} {[%emt 00:00:26]} 16. Rd2 {[%clk 00:04:43]}
{[%emt 00:02:43]} Qc7 {[%clk 00:08:27]} {[%emt 00:00:39]} 17. Qg3 {[%clk
00:03:48]} {[%emt 00:00:59]} Qb6 {[%clk 00:07:09]} {[%emt 00:01:23]} 18. Nd1
{[%clk 00:02:43]} {[%emt 00:01:10]} Nd4 {[%clk 00:05:45]} {[%emt 00:01:28]} 19.
c3 {[%clk 00:02:32]} {[%emt 00:00:17]} Nxf3+ {[%clk 00:05:01]} {[%emt
00:00:50]} 20. Qxf3 {[%clk 00:02:34]} {[%emt 00:00:03]} Nc5 {[%clk 00:04:16]}
{[%emt 00:00:49]} 21. Be3 {[%clk 00:02:31]} {[%emt 00:00:08]} Qb5 {[%clk
00:03:53]} {[%emt 00:00:23]} 22. Bd4 {[%clk 00:02:26]} {[%emt 00:00:15]} Bg5
{[%clk 00:02:33]} {[%emt 00:01:25]} 23. Rde2 {[%clk 00:01:28]} {[%emt
00:01:03]} Nd3 {[%clk 00:01:40]} {[%emt 00:00:58]} 24. Rf1 {[%clk 00:01:24]}
{[%emt 00:00:08]} Nc5 {[%clk 00:00:34]} {[%emt 00:01:13]} 25. Qg4 {[%clk
00:01:13]} {[%emt 00:00:15]} Be7 {[%clk 00:00:36]} {[%emt 00:00:03]} 26. f4
{[%clk 00:00:49]} {[%emt 00:00:29]} Nb3 {[%clk 00:00:23]} {[%emt 00:00:19]} 27.
Ne3 {[%clk 00:00:36]} {[%emt 00:00:17]} Nxd4 {[%clk 00:00:07]} {[%emt
00:00:22]} 28. cxd4 {[%clk 00:00:39]} {[%emt 00:00:02]} Qb6 {[%clk 00:00:10]}
{[%emt 00:00:01]} 29. Rd2 {[%clk 00:00:37]} {[%emt 00:00:07]} g6 {[%clk
00:00:11]} {[%emt 00:00:04]} 30. Rf3 {[%clk 00:00:34]} {[%emt 00:00:07]} Rc1+
{[%clk 00:00:14]} {[%emt 00:00:02]} 31. Kh2 {[%clk 00:00:38]} {[%emt 00:00:01]}
Rb1 {[%clk 00:00:16]} {[%emt 00:00:03]} 32. Rg3 {[%clk 00:00:38]} {[%emt
00:00:05]} Rxb2 {[%clk 00:00:20]} {[%emt 00:00:02]} 33. Rxb2 {[%clk 00:00:42]}
{[%emt 00:00:01]} Qxb2 {[%clk 00:00:24]} 34. f5 {[%clk 00:00:46]} {[%emt
00:00:01]} exf5 {[%clk 00:00:15]} {[%emt 00:00:14]} 35. Nxf5 {[%clk 00:00:49]}
{[%emt 00:00:01]} Bd8 {[%clk 00:00:10]} {[%emt 00:00:11]} 36. Ne3 {[%clk
00:00:47]} {[%emt 00:00:07]} Qb5 {[%clk 00:00:08]} {[%emt 00:00:07]} 37. Qf4
{[%clk 00:00:48]} {[%emt 00:00:03]} Qc6 {[%clk 00:00:08]} {[%emt 00:00:05]} 38.
Ng4 {[%clk 00:00:52]} {[%emt 00:00:01]} Qe6 {[%clk 00:00:07]} {[%emt 00:00:07]}
39. Rf3 {[%clk 00:00:55]} {[%emt 00:00:01]} Kg7 {[%clk 00:00:09]} {[%emt
00:00:03]} 40. h4 {[%clk 00:00:55]} {[%emt 00:00:05]} h5 {[%clk 00:00:12]}
{[%emt 00:00:02]} 41. Ne3 {[%clk 00:00:56]} {[%emt 00:00:04]} b5 {[%clk
00:00:13]} {[%emt 00:00:05]} 42. g4 {[%clk 00:00:57]} {[%emt 00:00:04]} hxg4
{[%clk 00:00:15]} {[%emt 00:00:03]} 43. Nxg4 {[%clk 00:01:00]} {[%emt
00:00:01]} Bxh4 {[%clk 00:00:17]} {[%emt 00:00:04]} 44. Nf6 {[%clk 00:01:00]}
{[%emt 00:00:04]} Bxf6 {[%clk 00:00:19]} {[%emt 00:00:03]} 45. exf6+ {[%clk
00:01:04]} {[%emt 00:00:01]} Kg8 {[%clk 00:00:21]} {[%emt 00:00:03]} 46. Qh4
{[%clk 00:01:05]} {[%emt 00:00:03]} Rc8 {[%clk 00:00:14]} {[%emt 00:00:13]} 47.
Rf2 {[%clk 00:01:03]} {[%emt 00:00:08]} Kf8 {[%clk 00:00:07]} {[%emt 00:00:11]}
48. Qh8# {[%clk 00:01:06]} {[%emt 00:00:02]} 1-0

[Event "Open NK Rapid 2025 bord 26-50"]
[Site "Helmond, Netherlands"]
[Date "2025.05.03"]
[Round "6.25"]
[White "Rogozyanskiy, Alexander"]
[Black "Koppenens, Oscar"]
[Result "1/2-1/2"]
[TimeControl "15 min +5 sec increment"]
[WhiteFideId "1092138"]
[BlackFideId "1087940"]
[WhiteElo "1726"]
[BlackElo "1858"]

1. e4 {[%clk 00:15:09]} c5 {[%clk 00:15:09]} {[%emt 00:00:02]} 2. Nf3 {[%clk
00:15:12]} {[%emt 00:00:01]} e6 {[%clk 00:15:13]} {[%emt 00:00:02]} 3. d4
{[%clk 00:15:16]} {[%emt 00:00:01]} cxd4 {[%clk 00:15:16]} {[%emt 00:00:02]} 4.
Nxd4 {[%clk 00:15:19]} {[%emt 00:00:01]} Nf6 {[%clk 00:15:20]} {[%emt
00:00:01]} 5. Nc3 {[%clk 00:15:23]} {[%emt 00:00:02]} Nc6 {[%clk 00:15:24]}
{[%emt 00:00:01]} 6. Nxc6 {[%clk 00:15:03]} {[%emt 00:00:24]} bxc6 {[%clk
00:15:27]} {[%emt 00:00:02]} 7. f4 {[%clk 00:13:44]} {[%emt 00:01:24]} Bb4
{[%clk 00:15:18]} {[%emt 00:00:14]} 8. Bd3 {[%clk 00:13:40]} {[%emt 00:00:09]}
Qb6 {[%clk 00:14:39]} {[%emt 00:00:45]} 9. Qe2 {[%clk 00:13:01]} {[%emt
00:00:43]} d5 {[%clk 00:14:42]} {[%emt 00:00:02]} 10. Bd2 {[%clk 00:12:23]}
{[%emt 00:00:44]} dxe4 {[%clk 00:11:44]} {[%emt 00:03:03]} 11. Nxe4 {[%clk
00:11:49]} {[%emt 00:00:39]} Nxe4 {[%clk 00:11:42]} {[%emt 00:00:08]} 12. Bxe4
{[%clk 00:09:50]} {[%emt 00:02:04]} Ba6 {[%clk 00:11:35]} {[%emt 00:00:11]} 13.
Bd3 {[%clk 00:08:15]} {[%emt 00:01:40]} Bxd3 {[%clk 00:10:38]} {[%emt
00:01:02]} 14. cxd3 {[%clk 00:08:18]} {[%emt 00:00:01]} O-O {[%clk 00:10:24]}
{[%emt 00:00:19]} 15. Bxb4 {[%clk 00:07:46]} {[%emt 00:00:38]} Qxb4+ {[%clk
00:10:27]} {[%emt 00:00:01]} 16. Qd2 {[%clk 00:07:51]} Rab8 {[%clk 00:10:23]}
{[%emt 00:00:09]} 17. O-O-O {[%clk 00:07:40]} {[%emt 00:00:15]} Qa4 {[%clk
00:10:12]} {[%emt 00:00:17]} 18. Kb1 {[%clk 00:07:24]} {[%emt 00:00:20]} Rb6
{[%clk 00:10:12]} {[%emt 00:00:06]} 19. Rc1 {[%clk 00:07:06]} {[%emt 00:00:22]}
Rfb8 {[%clk 00:10:08]} {[%emt 00:00:09]} 20. Rc2 {[%clk 00:06:51]} {[%emt
00:00:20]} Qd4 {[%clk 00:09:55]} {[%emt 00:00:19]} 21. g3 {[%clk 00:05:59]}
{[%emt 00:00:57]} a5 {[%clk 00:09:48]} {[%emt 00:00:12]} 22. Ka1 {[%clk
00:05:09]} {[%emt 00:00:55]} a4 {[%clk 00:09:49]} {[%emt 00:00:04]} 23. Qc3
{[%clk 00:04:52]} {[%emt 00:00:21]} Qd5 {[%clk 00:09:35]} {[%emt 00:00:19]} 24.
Re1 {[%clk 00:04:28]} {[%emt 00:00:29]} Ra8 {[%clk 00:08:11]} {[%emt 00:01:29]}
25. Qc4 {[%clk 00:03:50]} {[%emt 00:00:44]} Qd6 {[%clk 00:06:51]} {[%emt
00:01:25]} 26. Rd1 {[%clk 00:03:31]} {[%emt 00:00:23]} a3 {[%clk 00:06:38]}
{[%emt 00:00:18]} 27. b3 {[%clk 00:03:26]} {[%emt 00:00:10]} Ra5 {[%clk
00:05:57]} {[%emt 00:00:47]} 28. Rdc1 {[%clk 00:02:55]} {[%emt 00:00:35]} h6
{[%clk 00:05:50]} {[%emt 00:00:12]} 29. Qe4 {[%clk 00:02:59]} {[%emt 00:00:01]}
c5 {[%clk 00:04:57]} {[%emt 00:00:59]} 30. Qe5 {[%clk 00:02:32]} {[%emt
00:00:32]} Qxd3 {[%clk 00:04:01]} {[%emt 00:01:01]} 31. Rxc5 {[%clk 00:02:15]}
{[%emt 00:00:22]} Rxc5 {[%clk 00:03:58]} {[%emt 00:00:08]} 32. Qxc5 {[%clk
00:02:11]} {[%emt 00:00:08]} Qd2 {[%clk 00:01:57]} {[%emt 00:02:06]} 33. Rc2
{[%clk 00:01:14]} {[%emt 00:01:03]} Qd1+ {[%clk 00:01:40]} {[%emt 00:00:22]} 34.
Rc1 {[%clk 00:01:18]} {[%emt 00:00:01]} Qd2 {[%clk 00:01:33]} {[%emt 00:00:11]}
35. Qc8+ {[%clk 00:00:46]} {[%emt 00:00:37]} Kh7 {[%clk 00:01:37]} {[%emt
00:00:01]} 36. Qc2+ {[%clk 00:00:50]} {[%emt 00:00:02]} Qxc2 {[%clk 00:01:41]}
{[%emt 00:00:01]} 37. Rxc2 {[%clk 00:00:54]} Rd6 {[%clk 00:01:45]} {[%emt
00:00:01]} 38. Kb1 {[%clk 00:00:58]} Rd1+ {[%clk 00:01:49]} 39. Rc1 {[%clk
00:01:02]} Rd2 {[%clk 00:01:53]} {[%emt 00:00:01]} 40. Rc2 {[%clk 00:01:06]}
Rd1+ {[%clk 00:01:50]} {[%emt 00:00:07]} 41. Rc1 {[%clk 00:01:10]} Rd2 {[%clk
00:01:54]} {[%emt 00:00:01]} 42. Rc2 {[%clk 00:01:14]} 1/2-1/2

[Event "Open NK Rapid 2025 bord 26-50"]
[Site "Helmond, Netherlands"]
[Date "2025.05.03"]
[Round "7.1"]
[White "Werkhoven, Maarten"]
[Black "Aarts, Joaquin"]
[Result "0-1"]
[TimeControl "15 min +5 sec increment"]
[WhiteFideId "1014188"]
[BlackFideId "1078224"]
[WhiteElo "1822"]
[BlackElo "2027"]

1. Nc3 {[%clk 00:15:06]} c5 {[%clk 00:14:28]} {[%emt 00:00:45]} 2. Nf3 {[%clk
00:15:10]} {[%emt 00:00:02]} a6 {[%clk 00:13:45]} {[%emt 00:00:48]} 3. d4
{[%clk 00:15:13]} {[%emt 00:00:02]} cxd4 {[%clk 00:13:47]} {[%emt 00:00:02]} 4.
Nxd4 {[%clk 00:15:17]} {[%emt 00:00:02]} e5 {[%clk 00:13:49]} {[%emt 00:00:03]}
5. Nf3 {[%clk 00:15:10]} {[%emt 00:00:11]} Nc6 {[%clk 00:13:44]} {[%emt
00:00:11]} 6. e4 {[%clk 00:15:13]} {[%emt 00:00:02]} Nf6 {[%clk 00:13:14]}
{[%emt 00:00:35]} 7. Be2 {[%clk 00:14:46]} {[%emt 00:00:32]} Bb4 {[%clk
00:13:11]} {[%emt 00:00:08]} 8. Qd3 {[%clk 00:13:24]} {[%emt 00:01:26]} Bxc3+
{[%clk 00:12:44]} {[%emt 00:00:33]} 9. bxc3 {[%clk 00:13:26]} {[%emt 00:00:03]}
O-O {[%clk 00:12:39]} {[%emt 00:00:10]} 10. O-O {[%clk 00:13:24]} {[%emt
00:00:07]} d5 {[%clk 00:12:42]} {[%emt 00:00:02]} 11. exd5 {[%clk 00:12:39]}
{[%emt 00:00:51]} e4 {[%clk 00:12:38]} {[%emt 00:00:08]} 12. Qc4 {[%clk
00:12:02]} {[%emt 00:00:41]} exf3 {[%clk 00:12:26]} {[%emt 00:00:17]} 13. dxc6
{[%clk 00:12:06]} {[%emt 00:00:02]} fxe2 {[%clk 00:12:28]} {[%emt 00:00:03]} 14.
Re1 {[%clk 00:12:03]} {[%emt 00:00:09]} bxc6 {[%clk 00:12:08]} {[%emt
00:00:24]} 15. Bg5 {[%clk 00:11:29]} {[%emt 00:00:38]} Qd5 {[%clk 00:12:09]}
{[%emt 00:00:05]} 16. Qh4 {[%clk 00:11:22]} {[%emt 00:00:12]} Ne4 {[%clk
00:12:07]} {[%emt 00:00:07]} 17. Be3 {[%clk 00:10:46]} {[%emt 00:00:41]} Nxc3
{[%clk 00:11:41]} {[%emt 00:00:31]} 18. Bd4 {[%clk 00:10:45]} {[%emt 00:00:06]}
Nb5 {[%clk 00:11:42]} {[%emt 00:00:04]} 19. Bb2 {[%clk 00:09:48]} {[%emt
00:01:02]} Be6 {[%clk 00:11:33]} {[%emt 00:00:13]} 20. Rxe2 {[%clk 00:09:43]}
{[%emt 00:00:11]} Rad8 {[%clk 00:11:15]} {[%emt 00:00:23]} 21. Rae1 {[%clk
00:09:44]} {[%emt 00:00:03]} Qf5 {[%clk 00:10:43]} {[%emt 00:00:34]} 22. c4
{[%clk 00:09:09]} {[%emt 00:00:44]} Nd6 {[%clk 00:10:28]} {[%emt 00:00:19]} 23.
Re5 {[%clk 00:07:34]} {[%emt 00:01:41]} Qf6 {[%clk 00:08:52]} {[%emt 00:01:41]}
24. Qg3 {[%clk 00:05:55]} {[%emt 00:01:43]} Nxc4 {[%clk 00:07:37]} {[%emt
00:01:22]} 25. Rxe6 {[%clk 00:05:14]} {[%emt 00:00:45]} Qxb2 {[%clk 00:07:34]}
{[%emt 00:00:07]} 26. Rxc6 {[%clk 00:04:38]} {[%emt 00:00:41]} Qd2 {[%clk
00:07:08]} {[%emt 00:00:30]} 27. Kf1 {[%clk 00:03:31]} {[%emt 00:01:13]} Qxe1+
{[%clk 00:06:53]} {[%emt 00:00:21]} 28. Kxe1 {[%clk 00:03:34]} {[%emt
00:00:01]} Rfe8+ {[%emt 00:00:13]} 29. Qe3 {[%clk 00:03:28]} Nxe3 {[%clk
00:07:00]} {[%emt 00:00:02]} 30. fxe3 {[%clk 00:03:32]} {[%emt 00:00:01]} Rxe3+
{[%clk 00:07:04]} {[%emt 00:00:01]} 0-1